bitfinex/quotes_BTCUSD_20241020
["timestamp","ask_amount","ask_price","bid_price","bid_amount"]
[1729466598743,0.40493125,69116.0,69115.0,0.000829]
[1729466599160,0.41193125,69116.0,69115.0,0.000829]
[1729466601341,0.41121088,69116.0,69115.0,0.000829]
[1729466604167,0.40764315,69116.0,69115.0,0.000829]
[1729466604801,0.41343515,69116.0,69115.0,0.000829]
[1729466606959,0.41272325,69116.0,69115.0,0.000829]
[1729466608104,0.41272325,69116.0,69115.0,0.00743287]
[1729466609427,0.41272325,69116.0,69115.0,0.000829]
[1729466609830,0.41200393,69116.0,69115.0,0.000829]
[1729466610045,0.62897544,69116.0,69115.0,0.000829]
[1729466610264,0.41485601,69116.0,69115.0,0.000829]
[1729466610731,0.41685601,69116.0,69115.0,0.000829]
[1729466611355,0.41485601,69116.0,69115.0,0.000829]
[1729466611608,0.4797277,69116.0,69115.0,0.000829]
[1729466611831,0.41485601,69116.0,69115.0,0.000829]
[1729466612269,0.4817277,69116.0,69115.0,0.000829]
[1729466612534,0.48176801,69116.0,69115.0,0.000829]
[1729466612779,0.50135159,69116.0,69115.0,0.000829]
[1729466612980,0.41485601,69116.0,69115.0,0.000829]
[1729466613188,0.50135159,69116.0,69115.0,0.000829]
[1729466613401,0.40285601,69116.0,69115.0,0.000829]
[1729466613603,0.41685601,69116.0,69115.0,0.000829]
[1729466613810,0.43085601,69116.0,69115.0,0.000829]
[1729466614213,0.41685601,69116.0,69115.0,0.000829]
[1729466614388,0.42785601,69116.0,69115.0,0.000829]
[1729466614587,0.5144038,69116.0,69115.0,0.000829]
[1729466614997,0.5004038,69116.0,69115.0,0.000829]
[1729466615160,0.5134038,69116.0,69115.0,0.000829]
[1729466615784,0.42685601,69116.0,69115.0,0.000829]
[1729466617607,0.5134038,69116.0,69115.0,0.000829]
[1729466618033,0.5154038,69116.0,69115.0,0.000829]
[1729466618247,0.5134038,69116.0,69115.0,0.000829]
[1729466618901,0.42685601,69116.0,69115.0,0.000829]
[1729466619323,0.42885601,69116.0,69115.0,0.000829]
[1729466619531,0.42685601,69116.0,69115.0,0.000829]
[1729466620583,0.49372089,69116.0,69115.0,0.000829]
[1729466620797,0.49172089,69116.0,69115.0,0.000829]
[1729466621024,0.42685601,69116.0,69115.0,0.000829]
[1729466621448,0.42885601,69116.0,69115.0,0.000829]
[1729466621690,0.49169631,69116.0,69115.0,0.000829]
[1729466621874,0.4916961,69116.0,69115.0,0.000829]
[1729466622108,0.42885601,69116.0,69115.0,0.000829]
[1729466622250,0.49369509,69116.0,69115.0,0.000829]
[1729466622463,0.49534915,69116.0,69115.0,0.000829]
[1729466622808,0.43051401,69116.0,69115.0,0.000829]
[1729466623890,0.51695642,69116.0,69115.0,0.000829]
[1729466624515,0.42851401,69116.0,69115.0,0.000829]
[1729466624720,0.495345,69116.0,69115.0,0.000829]
[1729466625137,0.482345,69116.0,69115.0,0.000829]
[1729466626009,0.483345,69116.0,69115.0,0.000829]
[1729466626423,0.497345,69116.0,69115.0,0.000829]
[1729466628326,0.54112737,69116.0,69115.0,0.000829]
[1729466628775,0.54115455,69116.0,69115.0,0.000829]
[1729466629003,0.67326556,69116.0,69115.0,0.000829]
[1729466631528,0.53630247,69116.0,69115.0,0.000829]
[1729466631738,0.51467874,69116.0,69115.0,0.00744415]
[1729466631941,0.51467856,69116.0,69115.0,0.00744415]
[1729466632156,0.4714443,69116.0,69115.0,0.00744415]
[1729466632366,0.73165007,69116.0,69115.0,0.00744415]
[1729466632574,0.68841581,69116.0,69115.0,0.00744415]
[1729466632778,0.53630247,69116.0,69115.0,0.00744415]
[1729466633037,0.4714443,69116.0,69115.0,0.00744415]
[1729466633676,0.53630463,69116.0,69115.0,0.00744415]
[1729466633887,0.53915671,69116.0,69115.0,0.00744415]
[1729466634090,0.53915671,69116.0,69115.0,0.000829]
[1729466634333,0.47429638,69116.0,69115.0,0.00744406]
[1729466634583,0.47429638,69116.0,69115.0,0.000829]
[1729466635010,0.47429638,69116.0,69115.0,0.00744408]
[1729466635011,0.66478543,69116.0,69115.0,0.00744408]
[1729466635214,0.59992222,69116.0,69115.0,0.000829]
[1729466635635,0.68640266,69116.0,69115.0,0.000829]
[1729466636048,0.47429638,69116.0,69115.0,0.000829]
[1729466636258,0.53916817,69116.0,69115.0,0.000829]
[1729466636467,0.47429638,69116.0,69115.0,0.00744488]
[1729466636675,0.56078812,69116.0,69115.0,0.00744488]
[1729466637323,0.47429638,69116.0,69115.0,0.00744488]
[1729466638825,0.58251452,69116.0,69115.0,0.00744488]
[1729466639031,0.47429638,69116.0,69115.0,0.00744488]
[1729466641212,0.4714443,69116.0,69115.0,0.17924749]
[1729466641438,0.32186993,69116.0,69115.0,0.2152276]
[1729466641644,0.32186993,69116.0,69115.0,0.22608249]
[1729466641857,0.32186993,69116.0,69115.0,0.23711636]
[1729466642098,0.16461715,69116.0,69115.0,0.22608249]
[1729466642349,0.29530115,69116.0,69115.0,0.22608249]
[1729466642556,0.144678,69119.0,69118.0,0.18394792]
[1729466642767,0.144678,69119.0,69118.0,0.22520926]
[1729466642973,0.434009,69123.0,69122.0,0.1818]
[1729466643185,0.58296815,69123.0,69122.0,0.21644984]
[1729466643405,0.58296815,69123.0,69122.0,0.19898397]
[1729466643619,0.58296815,69123.0,69122.0,0.18898397]
[1729466643830,0.68296815,69123.0,69122.0,0.19898397]
[1729466644934,0.001658,69127.0,69126.0,0.17804792]
[1729466645154,0.21697151,69128.0,69126.0,0.21925532]
[1729466645369,0.144653,69131.0,69130.0,0.01214792]
[1729466645583,0.144653,69131.0,69130.0,0.21925384]
[1729466645792,0.144652,69132.0,69131.0,0.01]
[1729466646027,0.144652,69132.0,69131.0,0.21710592]
[1729466646522,0.144652,69132.0,69131.0,0.20388414]
[1729466646989,0.144652,69132.0,69131.0,0.19408397]
[1729466647861,0.144652,69132.0,69131.0,0.1769]
[1729466648073,0.144652,69132.0,69131.0,0.19401678]
[1729466648505,0.144652,69132.0,69131.0,0.19501678]
[1729466649363,0.144648,69133.0,69132.0,0.19094792]
[1729466649602,0.144648,69133.0,69132.0,0.2080647]
[1729466650706,0.144648,69133.0,69132.0,0.2090647]
[1729466650915,0.146303,69135.0,69134.0,0.01214792]
[1729466651136,0.146303,69135.0,69134.0,0.2071647]
[1729466651137,0.001658,69135.0,69134.0,0.2071647]
[1729466651550,0.146302,69135.0,69134.0,0.2071647]
[1729466651780,0.146302,69135.0,69134.0,0.2121647]
[1729466652207,0.36327351,69135.0,69134.0,0.2071647]
[1729466652424,0.146302,69135.0,69134.0,0.20813108]
[1729466652674,0.146302,69135.0,69134.0,0.20913108]
[1729466653516,0.146302,69135.0,69134.0,0.20813108]
[1729466653964,0.51223266,69135.0,69134.0,0.20913108]
[1729466654205,0.29526115,69135.0,69134.0,0.19761805]
[1729466654428,0.61223266,69135.0,69134.0,0.00857013]
[1729466654649,0.61223266,69135.0,69134.0,1e-06]
[1729466654871,0.39726115,69135.0,69134.0,1e-06]
[1729466655099,0.533995,69125.0,69124.0,0.005]
[1729466655342,0.68295415,69125.0,69124.0,0.005]
[1729466656457,0.68695415,69125.0,69124.0,0.005]
[1729466658014,0.69095415,69125.0,69124.0,0.005]
[1729466658426,0.69095415,69125.0,69124.0,0.21413108]
[1729466658680,0.69095415,69125.0,69124.0,0.21570205]
[1729466658900,0.69095415,69125.0,69124.0,0.20913108]
[1729466659352,0.69095415,69125.0,69124.0,0.21413108]
[1729466661310,0.69095415,69125.0,69124.0,0.20913108]
[1729466667401,0.69095415,69125.0,69124.0,0.20996008]
[1729466667593,0.69095415,69125.0,69124.0,0.21654741]
[1729466667805,0.69095415,69125.0,69124.0,0.29184741]
[1729466668036,0.152665,69125.0,69124.0,0.41383671]
[1729466668485,0.008,69125.0,69124.0,0.43201372]
[1729466668488,0.008,69125.0,69124.0,0.44281441]
[1729466668699,0.004,69125.0,69124.0,0.46378819]
[1729466669128,0.36162851,69129.0,69124.0,0.46378819]
[1729466669129,0.36162851,69129.0,69128.0,0.17674792]
[1729466669345,0.36162851,69129.0,69128.0,0.22785433]
[1729466669760,0.144657,69129.0,69128.0,0.22785433]
[1729466670411,0.144657,69129.0,69128.0,0.22885433]
[1729466671265,0.144657,69129.0,69128.0,0.04425433]
[1729466671266,0.51058766,69129.0,69128.0,0.04425433]
[1729466671486,0.39361615,69129.0,69128.0,0.00758733]
[1729466672229,0.39361615,69129.0,69128.0,0.00858733]
[1729466672452,0.39361615,69129.0,69128.0,0.00658733]
[1729466672667,0.39361615,69129.0,69128.0,0.00758733]
[1729466672899,0.40261615,69129.0,69128.0,0.00758733]
[1729466673112,0.40261615,69129.0,69128.0,0.00658733]
[1729466673589,0.41161615,69129.0,69128.0,0.00658733]
[1729466675542,0.41161615,69129.0,69124.0,0.222108]
[1729466675543,0.144665,69125.0,69124.0,0.222108]
[1729466675751,0.39362415,69125.0,69124.0,0.222108]
[1729466675977,0.39362415,69125.0,69124.0,0.23925609]
[1729466677128,0.39862415,69125.0,69124.0,0.23925609]
[1729466677634,0.40362415,69125.0,69124.0,0.23925609]
[1729466680715,0.40362415,69125.0,69124.0,0.23926621]
[1729466681988,0.40362415,69125.0,69124.0,0.03013513]
[1729466684339,0.40362415,69125.0,69124.0,0.03015353]
[1729466684759,0.40362415,69125.0,69124.0,0.01297692]
[1729466685012,0.40362415,69125.0,69124.0,0.04337676]
[1729466685228,0.40362415,69125.0,69124.0,0.05421223]
[1729466685436,0.40362415,69125.0,69124.0,0.15281223]
[1729466687177,0.40362415,69125.0,69124.0,0.14197676]
[1729466689492,0.40362415,69125.0,69124.0,0.15281201]
[1729466690169,0.40362415,69125.0,69124.0,0.14197676]
[1729466690393,0.154665,69125.0,69124.0,0.23371202]
[1729466690611,0.154665,69125.0,69124.0,0.24472835]
[1729466690836,0.154665,69125.0,69124.0,0.26206354]
[1729466691381,0.149665,69125.0,69124.0,0.26206354]
[1729466691587,0.149665,69125.0,69124.0,0.24572835]
[1729466691807,0.144665,69125.0,69124.0,0.26306236]
[1729466692227,0.144665,69125.0,69124.0,0.26406236]
[1729466692442,0.144665,69125.0,69124.0,0.26306236]
[1729466692658,0.289318,69128.0,69127.0,0.005]
[1729466692859,0.58293615,69128.0,69127.0,0.04838302]
[1729466693276,0.58293615,69128.0,69127.0,0.05338302]
[1729466694563,0.58293615,69128.0,69127.0,0.13528302]
[1729466694988,0.58293615,69128.0,69127.0,0.10488132]
[1729466695221,0.58293615,69128.0,69127.0,0.04437691]
[1729466695426,0.58293615,69128.0,69127.0,0.03032722]
[1729466695636,0.58293615,69128.0,69127.0,0.02132722]
[1729466695848,0.58293615,69128.0,69127.0,0.03132722]
[1729466696264,0.58293615,69128.0,69127.0,0.03032722]
[1729466696472,0.58293615,69128.0,69127.0,0.03032914]
[1729466696683,0.58693615,69128.0,69127.0,0.03032914]
[1729466697103,0.58693615,69128.0,69127.0,0.02932914]
[1729466697950,0.58293615,69128.0,69127.0,0.02932914]
[1729466698365,0.58393615,69128.0,69127.0,0.02932914]
[1729466700315,0.58393615,69128.0,69127.0,0.04016892]
[1729466700964,0.58393615,69128.0,69127.0,0.02932914]
[1729466701387,0.58393615,69128.0,69127.0,0.02298967]
[1729466701603,0.58393615,69128.0,69127.0,0.0401805]
[1729466701822,0.58393615,69128.0,69127.0,0.04100972]
[1729466702650,0.58393615,69128.0,69127.0,0.0542353]
[1729466702911,0.58393615,69128.0,69127.0,0.04208738]
[1729466703121,0.58393615,69128.0,69127.0,0.01801983]
[1729466703122,0.68393615,69128.0,69127.0,0.01801983]
[1729466703336,0.68393615,69128.0,69127.0,0.00744054]
[1729466703337,0.72721288,69128.0,69127.0,0.00744054]
[1729466703551,0.90090766,69128.0,69127.0,0.00744054]
[1729466703774,0.74886049,69128.0,69127.0,0.00743953]
[1729466704257,0.74786049,69128.0,69127.0,0.00743953]
[1729466704482,0.68293615,69128.0,69127.0,0.00743953]
[1729466704688,0.72722127,69128.0,69127.0,0.00743953]
[1729466705114,0.72622127,69128.0,69127.0,0.00743953]
[1729466705295,0.74786049,69128.0,69127.0,0.00743953]
[1729466705534,0.69793615,69128.0,69127.0,0.00743953]
[1729466705783,0.75685643,69128.0,69127.0,0.00743953]
[1729466705996,0.77848962,69128.0,69127.0,0.00743953]
[1729466706229,0.78948559,69128.0,69127.0,0.00743953]
[1729466706654,0.70293615,69128.0,69127.0,0.00743953]
[1729466706866,0.78949172,69128.0,69127.0,0.00743953]
[1729466707075,0.69393615,69128.0,69127.0,0.00743953]
[1729466707279,0.70493615,69128.0,69127.0,0.00743953]
[1729466707498,0.76985214,69128.0,69127.0,0.00743953]
[1729466707921,0.69393615,69128.0,69127.0,0.00743953]
[1729466708144,0.70493615,69128.0,69127.0,0.00743953]
[1729466708359,0.76985214,69128.0,69127.0,0.00743953]
[1729466708575,0.70493615,69128.0,69127.0,0.00743953]
[1729466708783,0.74821251,69128.0,69127.0,0.00743953]
[1729466709435,0.76984772,69128.0,69127.0,0.00743953]
[1729466710537,0.76985132,69128.0,69127.0,0.00743953]
[1729466711876,0.79149172,69128.0,69127.0,0.00743953]
[1729466712989,0.70493615,69128.0,69127.0,0.000829]
[1729466713215,0.79149172,69128.0,69127.0,0.00743523]
[1729466713462,0.70493615,69128.0,69127.0,0.00743523]
[1729466713641,0.70493615,69128.0,69127.0,0.00743485]
[1729466713901,0.79149172,69128.0,69127.0,0.00743485]
[1729466714376,0.79149172,69128.0,69127.0,0.000829]
[1729466714582,0.71237015,69128.0,69127.0,0.00743434]
[1729466714787,0.71522223,69128.0,69127.0,0.000829]
[1729466715001,0.71722223,69128.0,69127.0,0.000829]
[1729466715477,0.25451708,69125.0,69124.0,1e-06]
[1729466715686,0.44720886,69125.0,69124.0,1e-06]
[1729466715898,0.55660886,69125.0,69124.0,1e-06]
[1729466717426,0.57060886,69125.0,69124.0,1e-06]
[1729466718135,0.54087623,69125.0,69124.0,1e-06]
[1729466718604,0.86330941,69125.0,69124.0,1e-06]
[1729466718861,0.73348712,69125.0,69124.0,1e-06]
[1729466720672,0.58452797,69125.0,69124.0,1e-06]
[1729466720905,0.54087623,69125.0,69124.0,1e-06]
[1729466722597,0.58447739,69125.0,69124.0,1e-06]
[1729466722828,0.54087623,69125.0,69124.0,1e-06]
[1729466723070,0.54087623,69125.0,69116.0,3e-08]
[1729466723071,0.25453408,69117.0,69116.0,3e-08]
[1729466723323,0.15454008,69114.0,69113.0,3e-08]
[1729466723563,0.44665929,69114.0,69113.0,3e-08]
[1729466724058,0.68521083,69114.0,69113.0,3e-08]
[1729466724301,0.68485838,69114.0,69113.0,3e-08]
[1729466725691,0.53589923,69114.0,69113.0,3e-08]
[1729466725934,0.54989923,69114.0,69113.0,3e-08]
[1729466726166,0.86272074,69114.0,69113.0,3e-08]
[1729466726395,0.58069715,69114.0,69113.0,3e-08]
[1729466726601,0.53634923,69114.0,69113.0,3e-08]
[1729466726810,0.52734923,69114.0,69113.0,3e-08]
[1729466727032,0.64907415,69114.0,69113.0,3e-08]
[1729466727247,0.43149923,69114.0,69113.0,3e-08]
[1729466727487,0.5176343,69114.0,69113.0,3e-08]
[1729466728161,0.55242217,69114.0,69113.0,3e-08]
[1729466728383,0.53086587,69114.0,69113.0,3e-08]
[1729466728605,0.496078,69114.0,69113.0,3e-08]
[1729466728829,0.43149923,69114.0,69113.0,3e-08]
[1729466729069,0.496078,69114.0,69113.0,3e-08]
[1729466729342,0.43149923,69114.0,69113.0,3e-08]
[1729466729646,0.42164715,69114.0,69113.0,3e-08]
[1729466730144,0.32164715,69114.0,69113.0,0.08280003]
[1729466730618,0.30764715,69114.0,69113.0,0.08494795]
[1729466731112,0.32164715,69114.0,69113.0,0.08494795]
[1729466731326,0.30764715,69114.0,69113.0,0.08494795]
[1729466731822,0.42164715,69114.0,69113.0,0.08494795]
[1729466732004,0.39364715,69114.0,69113.0,0.08494795]
[1729466732279,0.39964715,69114.0,69113.0,0.08494795]
[1729466732480,0.40264715,69114.0,69113.0,0.08494795]
[1729466733011,0.39964715,69114.0,69113.0,0.08494795]
[1729466733269,0.40564715,69114.0,69113.0,0.08494795]
[1729466733952,0.40564715,69114.0,69113.0,0.0915393]
[1729466737774,0.40564715,69114.0,69113.0,0.08494795]
[1729466737987,0.40564715,69114.0,69113.0,0.09154121]
[1729466742612,0.40564715,69114.0,69113.0,0.08939329]
[1729466742613,0.62261866,69114.0,69113.0,0.08939329]
[1729466742837,0.40564715,69114.0,69113.0,0.08939329]
[1729466743704,0.40564715,69114.0,69113.0,0.08940032]
[1729466747162,0.40564715,69114.0,69113.0,0.08940142]
[1729466747599,0.40564715,69114.0,69113.0,0.08940105]
[1729466747816,0.40730515,69114.0,69113.0,0.08940105]
[1729466750099,0.40730515,69114.0,69113.0,0.08280003]
[1729466751131,0.40730515,69114.0,69113.0,0.08940076]
[1729466754697,0.40730515,69114.0,69113.0,0.08940205]
[1729466756478,0.40730515,69114.0,69113.0,0.09997316]
[1729466758447,0.40730515,69114.0,69113.0,0.09998495]
[1729466759939,0.40730515,69114.0,69113.0,0.11322352]
[1729466762794,0.40730515,69114.0,69113.0,0.11325212]
[1729466764579,0.40730515,69114.0,69113.0,0.11325292]
[1729466765719,0.39230515,69114.0,69113.0,0.10001172]
[1729466766636,0.39230515,69114.0,69113.0,0.10215964]
[1729466766854,0.29230515,69114.0,69113.0,0.23015853]
[1729466767061,0.29230515,69114.0,69113.0,0.24752637]
[1729466767281,0.29230515,69114.0,69113.0,0.26584941]
[1729466767489,0.29230515,69114.0,69113.0,0.25481287]
[1729466768349,0.28630515,69114.0,69113.0,0.25481287]
[1729466768561,0.132346,69114.0,69113.0,0.26583853]
[1729466768771,0.132346,69114.0,69113.0,0.25481287]
[1729466768999,0.131346,69114.0,69113.0,0.22658865]
[1729466769223,0.131346,69114.0,69113.0,0.25478196]
[1729466769428,0.132346,69114.0,69113.0,0.26580416]
[1729466769613,0.133346,69114.0,69113.0,0.26580416]
[1729466770756,0.133346,69114.0,69113.0,0.23743223]
[1729466770971,0.49927666,69114.0,69113.0,0.23743223]
[1729466771189,0.59927666,69114.0,69113.0,0.11325423]
[1729466771404,0.59927666,69114.0,69113.0,0.01721172]
[1729466771405,0.38230515,69114.0,69113.0,0.01721172]
[1729466771639,0.60127666,69114.0,69113.0,0.00661959]
[1729466771866,0.38715723,69114.0,69113.0,3e-08]
[1729466772097,0.39215723,69114.0,69113.0,3e-08]
[1729466772327,0.661391,69114.0,69113.0,3e-08]
[1729466772562,0.70514012,69114.0,69113.0,3e-08]
[1729466772800,0.14685799,69097.0,69096.0,0.000828]
[1729466773018,0.39581714,69097.0,69096.0,0.000828]
[1729466773281,0.39581714,69097.0,69096.0,0.00675995]
[1729466773282,0.50395029,69097.0,69096.0,0.00675995]
[1729466773496,0.50395029,69097.0,69096.0,0.000828]
[1729466773718,0.48228819,69097.0,69096.0,0.000828]
[1729466773928,0.4815748,69097.0,69096.0,0.000828]
[1729466774158,0.45996206,69097.0,69096.0,0.000828]
[1729466774400,0.45998205,69097.0,69096.0,0.000828]
[1729466774615,0.39510375,69097.0,69096.0,0.000828]
[1729466774803,0.40910375,69097.0,69096.0,0.000828]
[1729466775059,0.42310375,69097.0,69096.0,0.000828]
[1729466776567,0.42510375,69097.0,69096.0,0.000828]
[1729466776784,0.42810375,69097.0,69096.0,0.000828]
[1729466776972,0.45731534,69097.0,69096.0,0.000828]
[1729466777433,0.47131534,69097.0,69096.0,0.000828]
[1729466777651,0.41410375,69097.0,69096.0,0.000828]
[1729466777863,0.39868315,69097.0,69096.0,0.000828]
[1729466778075,0.42668315,69097.0,69096.0,0.000828]
[1729466778731,0.39368315,69097.0,69096.0,0.000828]
[1729466779180,0.40668315,69097.0,69096.0,0.000828]
[1729466779405,0.41168315,69097.0,69096.0,0.000828]
[1729466780106,0.42468315,69097.0,69096.0,0.000828]
[1729466780548,0.41168315,69097.0,69096.0,0.000828]
[1729466780837,0.40768315,69097.0,69096.0,0.000828]
[1729466781254,0.42168315,69097.0,69096.0,0.000828]
[1729466781480,0.39368315,69097.0,69096.0,0.000828]
[1729466781699,0.41968315,69097.0,69096.0,0.000828]
[1729466782129,0.40668315,69097.0,69096.0,0.000828]
[1729466782358,0.41768315,69097.0,69096.0,0.000828]
[1729466783018,0.40468315,69097.0,69096.0,0.000828]
[1729466783492,0.41568315,69097.0,69096.0,0.082428]
[1729466783946,0.41568315,69097.0,69096.0,0.000828]
[1729466790389,0.0014206,69093.0,69088.0,0.000829]
[1729466790616,0.005,69096.0,69088.0,0.000829]
[1729466790617,0.39369915,69089.0,69088.0,0.000829]
[1729466791912,0.39669915,69089.0,69088.0,0.000829]
[1729466793281,0.39969915,69089.0,69088.0,0.000829]
[1729466793540,0.39969915,69089.0,69088.0,0.0977084]
[1729466793541,0.39669915,69089.0,69088.0,0.0977084]
[1729466793775,0.40369915,69089.0,69088.0,0.18489245]
[1729466793989,0.41369915,69089.0,69088.0,0.18489245]
[1729466794478,0.40369915,69089.0,69088.0,0.18489245]
[1729466794902,0.40369915,69089.0,69088.0,0.19489245]
[1729466795117,0.39369915,69089.0,69088.0,0.19489245]
[1729466795325,0.39369915,69089.0,69088.0,0.18489245]
[1729466795535,0.39369915,69089.0,69088.0,0.19489245]
[1729466796441,0.39369915,69089.0,69088.0,0.19589245]
[1729466796667,0.39369915,69089.0,69088.0,0.19589552]
[1729466797124,0.29369915,69089.0,69088.0,0.20643619]
[1729466797340,0.578941,69092.0,69088.0,0.20643619]
[1729466797341,0.434203,69092.0,69091.0,0.1839]
[1729466797560,0.146382,69097.0,69096.0,0.1874794]
[1729466797774,0.29534115,69097.0,69096.0,0.21779096]
[1729466798688,0.39534115,69097.0,69096.0,0.21779096]
[1729466798914,0.39534115,69097.0,69096.0,0.20460719]
[1729466799344,0.39534115,69097.0,69096.0,0.20102779]
[1729466800046,0.39734115,69097.0,69096.0,0.20102779]
[1729466800270,0.39734115,69097.0,69096.0,0.1960562]
[1729466800701,0.39934115,69097.0,69096.0,0.1960562]
[1729466801367,0.39934115,69097.0,69096.0,0.20927567]
[1729466807312,0.39934115,69097.0,69096.0,0.20929161]
[1729466808673,0.39934115,69097.0,69096.0,0.19607705]
[1729466808885,0.39934115,69097.0,69096.0,0.20929111]
[1729466810671,0.39934115,69097.0,69096.0,0.19607705]
[1729466813346,0.39934115,69097.0,69096.0,0.02217705]
[1729466814248,0.39934115,69097.0,69096.0,0.21336118]
[1729466814465,0.39934115,69097.0,69096.0,0.36892033]
[1729466814466,0.005658,69097.0,69096.0,0.36892033]
[1729466814682,0.005658,69097.0,69096.0,0.37993377]
[1729466814899,0.005658,69097.0,69096.0,0.3862523]
[1729466815135,0.001658,69097.0,69096.0,0.3862523]
[1729466815370,0.001658,69097.0,69096.0,0.2425263]
[1729466816028,0.001658,69097.0,69096.0,0.2465263]
[1729466816254,0.001658,69097.0,69096.0,0.3922523]
[1729466816474,0.21697151,69103.0,69102.0,0.0929794]
[1729466816721,0.21697151,69103.0,69102.0,0.23519381]
[1729466816959,0.289366,69117.0,69112.0,0.01]
[1729466817192,0.36593066,69113.0,69112.0,0.21336118]
[1729466817377,0.51062066,69113.0,69112.0,0.22418583]
[1729466817632,0.36166151,69113.0,69112.0,0.22418583]
[1729466817842,0.14469,69113.0,69112.0,0.22418583]
[1729466818056,0.14469,69113.0,69112.0,0.19380405]
[1729466818270,0.14469,69113.0,69112.0,0.23512038]
[1729466818487,0.146346,69114.0,69113.0,0.01]
[1729466818716,0.146346,69114.0,69113.0,0.0511493]
[1729466819387,0.146346,69114.0,69113.0,0.04033158]
[1729466819611,0.148346,69114.0,69113.0,0.04033158]
[1729466820509,0.148346,69114.0,69113.0,0.0511398]
[1729466820719,0.148346,69114.0,69113.0,0.04033158]
[1729466820950,0.149346,69114.0,69113.0,0.04033158]
[1729466821133,0.149346,69114.0,69113.0,0.04030373]
[1729466821387,0.149346,69114.0,69113.0,0.04388313]
[1729466821615,0.149346,69114.0,69113.0,0.12348313]
[1729466821849,0.149346,69114.0,69113.0,0.1342929]
[1729466822065,0.149346,69114.0,69113.0,0.2293929]
[1729466822525,0.149346,69114.0,69113.0,0.21858313]
[1729466822775,0.149346,69114.0,69113.0,0.2293929]
[1729466824315,0.149346,69114.0,69113.0,0.19908917]
[1729466824542,0.149346,69114.0,69113.0,0.22938188]
[1729466824767,0.149346,69114.0,69113.0,0.21857211]
[1729466825211,0.149346,69114.0,69113.0,0.22938188]
[1729466825463,0.149346,69114.0,69113.0,0.21857211]
[1729466825962,0.149346,69114.0,69113.0,0.22938188]
[1729466826193,0.149346,69114.0,69113.0,0.21857211]
[1729466826632,0.004658,69114.0,69113.0,0.22938188]
[1729466826882,0.004658,69114.0,69113.0,0.66845188]
[1729466827074,0.004658,69114.0,69113.0,0.81314188]
[1729466827329,0.004658,69114.0,69113.0,0.66845188]
[1729466828116,0.001658,69114.0,69113.0,0.83614188]
[1729466828549,0.001658,69114.0,69113.0,0.83814188]
[1729466829686,0.001658,69114.0,69113.0,0.69345188]
[1729466830368,0.001658,69114.0,69113.0,0.66545188]
[1729466830631,0.146346,69114.0,69113.0,0.66545188]
[1729466830860,0.146346,69114.0,69113.0,0.66543488]
[1729466831106,0.146346,69114.0,69113.0,0.65464211]
[1729466831577,0.146346,69114.0,69113.0,0.66443506]
[1729466831807,0.146346,69114.0,69113.0,0.66440392]
[1729466832223,0.146346,69114.0,69113.0,0.66540392]
[1729466832475,0.146346,69114.0,69113.0,0.65461096]
[1729466833223,0.146346,69114.0,69113.0,0.65261096]
[1729466833471,0.146346,69114.0,69113.0,0.65361096]
[1729466833726,0.146346,69114.0,69113.0,0.65461096]
[1729466833971,0.146346,69114.0,69113.0,0.6654049]
[1729466835144,0.146346,69114.0,69113.0,0.65461096]
[1729466835395,0.146346,69114.0,69113.0,0.66540578]
[1729466835645,0.146346,69114.0,69113.0,0.67637209]
[1729466837519,0.146346,69114.0,69113.0,0.66540578]
[1729466837966,0.001658,69114.0,69113.0,0.66540578]
[1729466838920,0.146346,69114.0,69113.0,0.66540578]
[1729466839353,0.146346,69114.0,69113.0,0.6654379]
[1729466839566,0.001658,69114.0,69113.0,0.6654379]
[1729466841136,0.146346,69114.0,69113.0,0.6654379]
[1729466841828,0.146346,69114.0,69113.0,0.68272092]
[1729466842046,0.001658,69114.0,69113.0,0.6654379]
[1729466842259,0.001658,69114.0,69113.0,0.68272092]
[1729466843018,0.146346,69114.0,69113.0,0.63490073]
[1729466843245,0.146346,69114.0,69113.0,0.65468499]
[1729466843483,0.146346,69114.0,69113.0,0.68281527]
[1729466844625,0.146346,69114.0,69113.0,0.6547345]
[1729466845096,0.146346,69114.0,69113.0,0.68291176]
[1729466846398,0.146346,69114.0,69113.0,0.7046089]
[1729466847256,0.146346,69114.0,69113.0,0.68291176]
[1729466847902,0.146346,69114.0,69113.0,0.70460963]
[1729466848119,0.001658,69114.0,69113.0,0.70460963]
[1729466849041,0.21697151,69136.0,69113.0,0.70460963]
[1729466849042,0.21697151,69120.0,69119.0,0.1820794]
[1729466849269,0.290979,69128.0,69119.0,0.1820794]
[1729466849270,0.146323,69125.0,69124.0,0.01]
[1729466849481,0.146323,69125.0,69124.0,0.50259614]
[1729466850132,0.146323,69125.0,69124.0,0.48525572]
[1729466850345,0.146323,69125.0,69124.0,0.50619021]
[1729466850999,0.146323,69125.0,69124.0,0.51206562]
[1729466851220,0.30028215,69125.0,69124.0,0.51206562]
[1729466851461,0.29528215,69125.0,69124.0,0.49113113]
[1729466851678,0.29528215,69125.0,69124.0,0.49471053]
[1729466852352,0.30028215,69125.0,69124.0,0.49471053]
[1729466852791,0.29528215,69125.0,69124.0,0.49471053]
[1729466853009,0.29728215,69125.0,69124.0,0.49471053]
[1729466853449,0.29728215,69125.0,69124.0,0.50572877]
[1729466853667,0.29728215,69125.0,69124.0,0.49471053]
[1729466853668,0.29928215,69125.0,69124.0,0.49471053]
[1729466853890,0.29928215,69125.0,69124.0,0.4702842]
[1729466853891,0.39928215,69125.0,69124.0,0.4702842]
[1729466856150,0.39928215,69125.0,69124.0,0.5530636]
[1729466856584,0.39928215,69125.0,69124.0,0.56390852]
[1729466856811,0.39528215,69125.0,69124.0,0.56390852]
[1729466857240,0.39628215,69125.0,69124.0,0.56390852]
[1729466857718,0.39628215,69125.0,69124.0,0.56490852]
[1729466858150,0.39628215,69125.0,69124.0,0.56390852]
[1729466858367,0.39628215,69125.0,69124.0,0.56490852]
[1729466859032,0.39528215,69125.0,69124.0,0.56490852]
[1729466859464,0.39528215,69125.0,69124.0,0.56590852]
[1729466860814,0.39528215,69125.0,69124.0,0.56590517]
[1729466862597,0.39528215,69125.0,69124.0,0.48112577]
[1729466862822,0.39528215,69125.0,69124.0,0.47027981]
[1729466863046,0.40128215,69125.0,69124.0,0.47027981]
[1729466863278,0.39828215,69125.0,69124.0,0.47027981]
[1729466863508,0.39528215,69125.0,69124.0,0.47027981]
[1729466863743,0.39828215,69125.0,69124.0,0.47127981]
[1729466864175,0.39828215,69125.0,69124.0,0.47027981]
[1729466864391,0.39528215,69125.0,69124.0,0.47027981]
[1729466864664,0.40028215,69125.0,69124.0,0.47027981]
[1729466864883,0.40028215,69125.0,69124.0,0.45705928]